fUST/lending_fUST_20251118
["ID","MTS","AMOUNT","RATE_DAILY","PERIOD"]
[394239129,1763401838114,-33169.18128467,0.0003799,30]
[394239131,1763401838126,-100000.0,0.0003799,30]
[394239133,1763401838142,-100000.0,0.0003799,30]
[394239135,1763401838152,-100000.0,0.0003799,30]
[394239137,1763401838161,-100000.0,0.0003799,30]
[394239139,1763401838171,-100000.0,0.0003799,30]
[394239141,1763401838181,-100000.0,0.0003799,30]
[394239143,1763401838190,-25829.0,0.0003799,30]
[394239145,1763401838199,-250.0,0.0003799,10]
[394239147,1763401838209,-250.0,0.0003799,10]
[394239149,1763401838218,-250.0,0.0003799,10]
[394239150,1763401838227,-307.453481,0.0003799,10]
[394239152,1763401838237,-104904.11965,0.00038032,3]
[394239154,1763401838246,-150.0,0.00038041,2]
[394239156,1763401838256,-150.0,0.00038041,7]
[394239158,1763401838266,-150.0,0.00038041,5]
[394239160,1763401838276,-1855.1710023,0.00038042,2]
[394239163,1763401838285,-47212.2576159,0.00038042,2]
[394239164,1763401838295,-500.0,0.00038073,5]
[394239166,1763401838305,-500.0,0.00038073,5]
[394239168,1763401838314,-162.75,0.000381,7]
[394239170,1763401838324,-689.33,0.000381,14]
[394239172,1763401838333,-8514.15,0.000381,14]
[394239174,1763401838343,-1888.56,0.000381,30]
[394239176,1763401838352,-344.04051,0.00038308,5]
[394239178,1763401838365,-215.04546296,0.00038308,5]
[394239180,1763401838374,-150.0,0.00038356,5]
[394239182,1763401838383,-104904.11965,0.00038435,3]
[394239184,1763401838392,-500.0,0.00038445,30]
[394239186,1763401838401,-500.0,0.000386,30]
[394239188,1763401838411,-1000.0,0.00038621,5]
[394239190,1763401838421,-454.1430887,0.00038727,2]
[394239192,1763401838431,-874.15,0.00038733,2]
[394239194,1763401838440,-195.903316,0.00038738,10]
[394239196,1763401838449,-600.0,0.00038755,90]
[394239198,1763401838459,-1005.6916917,0.00038935,2]
[394239200,1763401838468,-200.0,0.00039,120]
[394239202,1763401838478,-762.29627417,0.00039,10]
[394239204,1763401838487,-500.0,0.00039085,2]
[394239206,1763401838497,-1000.0,0.00039168,5]
[394239208,1763401838507,-250.0,0.00039178,5]
[394239210,1763401838516,-500.0,0.00039224,30]
[394239212,1763401838525,-309.23647507,0.00039244,2]
[394239214,1763401838535,-501.75223311,0.00039613,30]
[394239216,1763401838544,-625.88129,0.00039654,2]
[394239218,1763401838553,-509.38,0.00039683,7]
[394239221,1763401838574,-2000.0,0.00039766,21]
[394239223,1763401838585,-151.0,0.0003979,120]
[394239225,1763401838595,-151.0,0.0003979,120]
[394239227,1763401838605,-151.0,0.0003979,120]
[394239229,1763401838615,-151.0,0.0003979,120]
[394239231,1763401838625,-151.0,0.0003979,120]
[394239233,1763401838635,-151.0,0.0003979,120]
[394239235,1763401838644,-151.0,0.0003979,30]
[394239236,1763401838654,-151.0,0.0003979,120]
[394239239,1763401838664,-151.0,0.0003979,120]
[394239240,1763401838673,-151.0,0.0003979,120]
[394239243,1763401838684,-151.0,0.0003979,120]
[394239245,1763401838694,-151.0,0.0003979,120]
[394239247,1763401838704,-151.0,0.0003979,120]
[394239248,1763401838714,-151.0,0.0003979,120]
[394239251,1763401838724,-151.0,0.0003979,120]
[394239252,1763401838734,-151.0,0.0003979,120]
[394239255,1763401838744,-151.0,0.0003979,120]
[394239256,1763401838755,-151.0,0.0003979,120]
[394239258,1763401838765,-151.0,0.0003979,120]
[394239260,1763401838775,-151.0,0.0003979,120]
[394239261,1763401838784,-151.0,0.0003979,120]
[394239262,1763401838793,-151.0,0.0003979,120]
[394239263,1763401838803,-151.0,0.0003979,120]
[394239265,1763401838814,-151.0,0.0003979,7]
[394239266,1763401838824,-151.0,0.0003979,120]
[394239267,1763401838834,-151.0,0.0003979,120]
[394239268,1763401838844,-151.0,0.0003979,15]
[394239269,1763401838853,-151.0,0.0003979,60]
[394239270,1763401838868,-151.0,0.0003979,120]
[394239271,1763401838878,-151.0,0.0003979,120]
[394239272,1763401838887,-151.0,0.0003979,120]
[394239273,1763401838897,-151.0,0.0003979,120]
[394239274,1763401838907,-151.0,0.0003979,120]
[394239275,1763401838917,-151.0,0.0003979,120]
[394239276,1763401838926,-151.0,0.0003979,120]
[394239277,1763401838936,-151.0,0.0003979,120]
[394239278,1763401838946,-151.0,0.0003979,90]
[394239279,1763401838955,-151.0,0.0003979,120]
[394239280,1763401838964,-151.0,0.0003979,120]
[394239281,1763401838974,-151.0,0.0003979,120]
[394239282,1763401838983,-151.0,0.0003979,120]
[394239283,1763401838993,-191.062305,0.0003979,120]
[394239284,1763401839003,-151.0,0.0003979,120]
[394239285,1763401839012,-155.533912,0.0003979,120]
[394239286,1763401839021,-151.0,0.0003979,120]
[394239287,1763401839031,-151.0,0.0003979,120]
[394239288,1763401839045,-151.0,0.0003979,120]
[394239289,1763401839055,-151.0,0.0003979,120]
[394239290,1763401839065,-151.0,0.0003979,120]
[394239291,1763401839075,-151.0,0.0003979,120]
[394239292,1763401839086,-151.0,0.0003979,120]
[394239293,1763401839096,-151.0,0.0003979,120]
[394239294,1763401839106,-151.0,0.0003979,120]
[394239295,1763401839116,-104904.11965,0.0003979,3]
[394239296,1763401839125,-151.0,0.0003979,120]
[394239297,1763401839135,-151.0,0.0003979,120]
[394239298,1763401839145,-151.0,0.0003979,120]
[394239299,1763401839154,-151.0,0.0003979,120]
[394239300,1763401839163,-151.0,0.0003979,120]
[394239301,1763401839173,-151.0,0.0003979,120]
[394239302,1763401839183,-151.0,0.0003979,120]
[394239303,1763401839193,-221.329082,0.0003979,120]
[394239304,1763401839204,-151.0,0.0003979,120]
[394239305,1763401839214,-151.0,0.0003979,120]
[394239306,1763401839223,-151.0,0.0003979,120]
[394239307,1763401839233,-151.0,0.0003979,120]
[394239308,1763401839242,-162.30121,0.0003979,120]
[394239309,1763401839252,-151.0,0.0003979,120]
[394239310,1763401839262,-151.0,0.0003979,120]
[394239311,1763401839271,-151.0,0.0003979,120]
[394239312,1763401839280,-151.0,0.0003979,120]
[394239313,1763401839290,-151.0,0.0003979,120]
[394239314,1763401839300,-151.0,0.0003979,120]
[394239315,1763401839310,-151.0,0.0003979,120]
[394239316,1763401839320,-151.0,0.0003979,120]
[394239317,1763401839331,-151.0,0.0003979,120]
[394239318,1763401839341,-151.0,0.0003979,120]
[394239319,1763401839351,-157.611051,0.0003979,120]
[394239320,1763401839361,-151.0,0.0003979,120]
[394239321,1763401839371,-52185.86407022,0.000398,30]
[394239322,1763401839381,-186.84208537,0.000399,120]
[394239323,1763401839390,-500.0,0.00039973,5]
[394239324,1763401839400,-104904.11965,0.0003999,3]
[394239325,1763401839410,-200.0,0.0004,120]
[394239326,1763401839420,-11999.999998,0.0004,30]
[394239327,1763401839430,-31001.4383005,0.0004,2]
[394239328,1763401839440,-350.0,0.0004,5]
[394239329,1763401839449,-5000.0,0.00040002,4]
[394239330,1763401839459,-163.0,0.000402,120]
[394239331,1763401839469,-413.0,0.00040221,2]
[394239332,1763401839478,-1888.56,0.000403,30]
[394239333,1763401839488,-195.903316,0.00040391,15]
[394239334,1763401839499,-8514.15,0.000404,14]
[394239335,1763401839509,-250.66670203,0.00040521,5]
[394239336,1763401839519,-1748.31,0.00040577,2]
[394239337,1763401839628,-689.33,0.000406,14]
[394239338,1763401839638,-450.0,0.00040822,5]
[394239339,1763401839648,-195.37324811,0.00041,120]
[394239340,1763401839658,-160.32498685,0.00041,120]
[394239341,1763401839667,-164.21721063,0.00041,120]
[394239342,1763401839677,-203.34406493,0.00041,120]
[394239344,1763401839687,-220.20437159,0.00041,120]
[394239345,1763401839696,-619.97730136,0.00041,120]
[394239346,1763401839706,-196.29707873,0.00041,120]
[394239347,1763401839716,-207.72132786,0.00041,120]
[394239348,1763401839725,-502.06396895,0.00041071,15]
[394239349,1763401839736,-500.0,0.00041095,120]
[394239351,1763401839746,-500.0,0.00041095,120]
[394239353,1763401839755,-500.0,0.00041095,120]
[394239354,1763401839765,-500.0,0.00041095,120]
[394239355,1763401839774,-1000.0,0.00041095,2]
[394239356,1763401839783,-500.0,0.00041095,120]
[394239358,1763401839792,-787.93,0.00041095,7]
[394239359,1763401839802,-1983.12,0.00041095,2]
[394239360,1763401839811,-500.0,0.00041095,120]
[394239361,1763401839820,-603.1039831,0.00041095,120]
[394239362,1763401839829,-500.0,0.00041095,120]
[394239363,1763401839839,-500.0,0.00041095,120]
[394239365,1763401839848,-500.0,0.00041095,120]
[394239367,1763401839857,-187.21113097,0.00041095,120]
[394239368,1763401839866,-500.0,0.00041095,120]
[394239370,1763401839876,-501.88469821,0.00041095,120]
[394239372,1763401839885,-269.35899136,0.00041095,120]
[394239374,1763401839894,-1833.29,0.00041095,120]
[394239375,1763401839903,-500.0,0.00041095,120]
[394239376,1763401839912,-500.0,0.00041095,120]
[394239377,1763401839921,-321.10793488,0.00041095,120]
[394239378,1763401839930,-648.21044352,0.00041095,120]
[394239379,1763401839939,-4054.14,0.00041095,120]
[394239380,1763401839948,-500.0,0.00041095,120]
[394239381,1763401839957,-500.0,0.00041095,120]
[394239382,1763401839967,-152.22542064,0.00041095,120]
[394239383,1763401839976,-500.0,0.00041095,120]
[394239384,1763401839985,-500.0,0.00041095,120]
[394239385,1763401839994,-500.0,0.00041095,2]
[394239386,1763401840002,-500.0,0.00041095,120]
[394239387,1763401840011,-282.11090321,0.00041095,120]
[394239388,1763401840020,-500.0,0.00041095,120]
[394239389,1763401840029,-500.0,0.00041095,60]
[394239390,1763401840042,-500.0,0.00041095,120]
[394239391,1763401840051,-500.0,0.00041095,2]
[394239392,1763401840060,-500.0,0.00041095,7]
[394239393,1763401840069,-506.69743344,0.00041095,120]
[394239394,1763401840078,-500.0,0.00041095,120]
[394239395,1763401840087,-500.0,0.00041095,120]
[394239396,1763401840096,-11286.87,0.00041095,3]
[394239397,1763401840105,-500.0,0.00041095,120]
[394239398,1763401840116,-500.0,0.00041095,120]
[394239399,1763401840125,-331.79386096,0.00041095,120]
[394239400,1763401840134,-170.78991164,0.00041095,120]
[394239401,1763401840143,-1529.92,0.00041095,120]
[394239402,1763401840152,-500.0,0.00041095,120]
[394239403,1763401840161,-245.94547655,0.00041095,120]
[394239404,1763401840170,-2500.0,0.00041095,30]
[394239405,1763401840179,-500.0,0.00041095,10]
[394239406,1763401840189,-311.12039148,0.00041095,120]
[394239407,1763401840198,-2083.77,0.00041095,60]
[394239409,1763401840208,-191.23588815,0.00041095,120]
[394239410,1763401840220,-1761.02,0.00041095,120]
[394239412,1763401840230,-516.77217842,0.00041095,120]
[394239414,1763401840239,-500.0,0.00041095,120]
[394239416,1763401840248,-159.31531264,0.00041095,120]
[394239418,1763401840258,-544.70357519,0.00041095,120]
[394239419,1763401840267,-208.49385494,0.00041095,120]
[394239420,1763401840276,-500.0,0.00041095,120]
[394239421,1763401840286,-500.0,0.00041095,120]
[394239422,1763401840296,-500.0,0.00041095,120]
[394239423,1763401840305,-174.25440505,0.00041095,120]
[394239424,1763401840315,-500.0,0.00041095,120]
[394239426,1763401840325,-352.81271771,0.00041095,120]
[394239427,1763401840334,-486.79283122,0.00041095,120]
[394239428,1763401840344,-500.0,0.00041095,120]
[394239429,1763401840353,-500.0,0.00041095,120]
[394239430,1763401840363,-500.0,0.00041095,120]
[394239431,1763401840372,-310.06296109,0.00041095,120]
[394239432,1763401840381,-168.18444552,0.00041095,120]
[394239433,1763401840391,-420.30779144,0.00041095,120]
[394239434,1763401840400,-500.0,0.00041095,120]
[394239435,1763401840409,-859.98,0.00041095,120]
[394239436,1763401840419,-500.0,0.00041095,120]
[394239437,1763401840429,-152.12220667,0.00041095,120]
[394239438,1763401840438,-500.0,0.00041095,120]
[394239439,1763401840447,-254.65866221,0.00041095,60]
[394239440,1763401840456,-546.86773731,0.00041095,120]
[394239441,1763401840465,-649.89082902,0.00041095,120]
[394239442,1763401840474,-724.88,0.00041095,7]
[394239443,1763401840483,-1042.85,0.00041095,120]
[394239444,1763401840492,-171.59827234,0.00041095,120]
[394239445,1763401840502,-541.37565676,0.00041095,120]
[394239446,1763401840511,-500.0,0.00041095,120]
[394239447,1763401840520,-168.04497852,0.00041095,120]
[394239448,1763401840531,-500.0,0.00041095,7]
[394239449,1763401840540,-500.0,0.00041095,120]
[394239450,1763401840550,-225.94897053,0.00041095,120]
[394239451,1763401840559,-500.0,0.00041095,120]
[394239452,1763401840568,-500.96118343,0.00041095,2]
[394239453,1763401840577,-521.54776667,0.00041095,120]
[394239454,1763401840586,-500.0,0.00041095,120]
[394239455,1763401840596,-500.0,0.00041095,120]
[394239456,1763401840605,-500.0,0.00041095,120]
[394239457,1763401840616,-511.29123455,0.00041095,120]
[394239458,1763401840626,-833.63,0.00041095,120]
[394239459,1763401840635,-500.0,0.00041095,120]
[394239460,1763401840645,-150.4718788,0.00041095,120]
[394239461,1763401840654,-500.0,0.00041096,120]
[394239462,1763401840664,-250.0,0.00041096,10]
[394239463,1763401840674,-154.97,0.00041096,120]
[394239464,1763401840685,-500.0,0.00041096,15]
[394239465,1763401840694,-500.0,0.00041096,15]
[394239466,1763401840704,-500.0,0.00041096,15]
[394239467,1763401840713,-500.0,0.00041096,15]
[394239468,1763401840723,-500.0,0.00041096,15]
[394239469,1763401840732,-500.0,0.00041096,15]
[394239470,1763401840741,-500.0,0.00041096,15]
[394239471,1763401840751,-500.0,0.00041096,15]
[394239472,1763401840760,-500.0,0.00041096,15]
[394239473,1763401840769,-500.0,0.00041096,15]
[394239474,1763401840778,-500.0,0.00041096,15]
[394239475,1763401840788,-250.57352013,0.00041096,15]
[394239476,1763401840798,-500.0,0.00041096,31]
[394239477,1763401840807,-500.0,0.00041096,31]
[394239478,1763401840817,-500.0,0.00041096,31]
[394239479,1763401840826,-500.0,0.00041096,31]
[394239480,1763401840836,-500.0,0.00041096,31]
[394239481,1763401840845,-500.0,0.00041096,31]
[394239482,1763401840855,-500.0,0.00041096,31]
[394239483,1763401840866,-500.0,0.00041096,31]
[394239484,1763401840875,-500.0,0.00041096,31]
[394239485,1763401840885,-500.0,0.00041096,31]
[394239486,1763401840895,-500.0,0.00041096,31]
[394239487,1763401840904,-500.0,0.00041096,31]
[394239488,1763401840913,-500.0,0.00041096,31]
[394239489,1763401840922,-500.0,0.00041096,31]
[394239490,1763401840931,-500.0,0.00041096,31]
[394239491,1763401840941,-500.0,0.00041096,31]
[394239492,1763401840950,-500.0,0.00041096,31]
[394239493,1763401840959,-500.0,0.00041096,31]
[394239494,1763401840968,-500.0,0.00041096,31]
[394239495,1763401840977,-500.0,0.00041096,31]
[394239496,1763401840986,-500.0,0.00041096,31]
[394239497,1763401840995,-261.57592058,0.00041096,31]
[394239498,1763401841004,-500.0,0.00041096,31]
[394239499,1763401841014,-500.0,0.00041096,31]
[394239500,1763401841023,-500.0,0.00041096,31]
[394239501,1763401841033,-500.0,0.00041096,31]
[394239502,1763401841045,-500.0,0.00041096,31]
[394239503,1763401841054,-500.0,0.00041096,31]
[394239504,1763401841064,-500.0,0.00041096,31]
[394239505,1763401841074,-500.0,0.00041096,31]
[394239506,1763401841083,-500.0,0.00041096,31]
[394239507,1763401841093,-166.0,0.00041245,14]
[394239508,1763401841102,-166.0,0.00041245,14]
[394239509,1763401841112,-166.0,0.00041245,14]
[394239510,1763401841122,-172.0,0.00041245,14]
[394239511,1763401841131,-151.0,0.00041245,14]
[394239512,1763401841140,-151.0,0.00041245,14]
[394239513,1763401841150,-164.91139963,0.00041245,14]
[394239514,1763401841159,-332.0,0.00041245,14]
[394239515,1763401841168,-332.0,0.00041245,14]
[394239516,1763401841177,-332.0,0.00041245,14]
[394239517,1763401841187,-332.0,0.00041245,14]
[394239518,1763401841196,-332.0,0.00041245,14]
[394239519,1763401841205,-332.0,0.00041245,14]
[394239520,1763401841214,-332.0,0.00041245,14]
[394239521,1763401841224,-332.0,0.00041245,14]
[394239522,1763401841234,-332.0,0.00041245,14]
[394239523,1763401841243,-332.0,0.00041245,14]
[394239524,1763401841253,-332.0,0.00041245,14]
[394239525,1763401841262,-332.0,0.00041245,14]
[394239526,1763401841271,-332.0,0.00041245,14]
[394239527,1763401841280,-280.57090883,0.00041245,14]
[394239528,1763401841290,-174.0,0.00041245,14]
[394239529,1763401841299,-174.81240782,0.00041245,14]
[394239530,1763401841308,-500.0,0.00041369,120]
[394239531,1763401841318,-639.02237505,0.00041369,120]
[394239532,1763401841327,-500.0,0.00041369,120]
[394239533,1763401841336,-500.0,0.00041369,120]
[394239534,1763401841352,-1000.0,0.00041369,2]
[394239535,1763401841369,-500.0,0.00041369,120]
[394239536,1763401841378,-787.93,0.00041369,7]
[394239537,1763401841387,-1983.12,0.00041369,2]
[394239538,1763401841396,-500.0,0.00041369,120]
[394239539,1763401841406,-500.0,0.00041369,120]
[394239540,1763401841415,-500.0,0.00041369,120]
[394239541,1763401841425,-500.0,0.00041369,120]
[394239542,1763401841434,-500.0,0.00041369,120]
[394239543,1763401841444,-1833.29,0.00041369,120]
[394239544,1763401841453,-500.0,0.00041369,120]
[394239545,1763401841463,-500.0,0.00041369,120]
[394239546,1763401841473,-4054.14,0.00041369,120]
[394239547,1763401841483,-501.60651867,0.00041369,120]
[394239548,1763401841492,-500.0,0.00041369,120]
[394239549,1763401841502,-301.40264279,0.00041369,120]
[394239550,1763401841511,-500.0,0.00041369,2]
[394239551,1763401841521,-512.03999836,0.00041369,120]
[394239552,1763401841531,-500.0,0.00041369,120]
[394239553,1763401841540,-500.0,0.00041369,60]
[394239554,1763401841550,-500.0,0.00041369,120]
[394239555,1763401841559,-500.0,0.00041369,2]
[394239556,1763401841569,-500.0,0.00041369,7]
[394239557,1763401841578,-500.0,0.00041369,120]
[394239558,1763401841587,-500.0,0.00041369,120]
[394239559,1763401841596,-11286.87,0.00041369,3]
[394239560,1763401841610,-207.56246921,0.00041369,120]
[394239561,1763401841620,-500.0,0.00041369,120]
[394239562,1763401841630,-1529.92,0.00041369,120]
[394239563,1763401841640,-500.0,0.00041369,120]
[394239564,1763401841724,-995.10413745,0.00041369,30]
[394239565,1763401841734,-510.25110705,0.00041369,10]
[394239566,1763401841743,-2083.77,0.00041369,60]
[394239567,1763401841753,-1761.02,0.00041369,120]
[394239568,1763401841762,-500.0,0.00041369,120]
[394239569,1763401841771,-500.0,0.00041369,120]
[394239570,1763401841780,-545.91715447,0.00041369,120]
[394239571,1763401841790,-274.33195143,0.00041369,120]
[394239572,1763401841799,-500.0,0.00041369,120]
[394239573,1763401841808,-500.0,0.00041369,120]
[394239574,1763401841817,-500.0,0.00041369,120]
[394239575,1763401841827,-417.39940534,0.00041369,120]
[394239576,1763401841836,-500.0,0.00041369,120]
[394239577,1763401841845,-859.98,0.00041369,120]
[394239578,1763401841854,-500.0,0.00041369,120]
[394239579,1763401841866,-500.0,0.00041369,120]
[394239580,1763401841875,-724.88,0.00041369,7]
[394239581,1763401841884,-1042.85,0.00041369,120]
[394239582,1763401841893,-500.0,0.00041369,120]
[394239583,1763401841903,-500.0,0.00041369,7]
[394239584,1763401841912,-500.0,0.00041369,120]
[394239585,1763401841922,-500.0,0.00041369,120]
[394239586,1763401841931,-500.0,0.00041369,120]
[394239587,1763401841940,-515.69073871,0.00041369,120]
[394239588,1763401841950,-500.0,0.00041369,120]
[394239589,1763401841961,-833.63,0.00041369,120]
[394239590,1763401841970,-500.0,0.00041369,120]
[394239591,1763401841979,-500.0,0.0004137,120]
[394239592,1763401841989,-200.0,0.000414,120]
[394239593,1763401841998,-151.0,0.0004143,120]
[394239594,1763401842007,-265.880221,0.0004144,120]
[394239595,1763401842017,-178.69926738,0.0004144,120]
[394239596,1763401842029,-151.0,0.0004144,120]
[394239597,1763401842042,-151.0,0.0004144,120]
[394239598,1763401842053,-151.0,0.0004144,120]
[394239599,1763401842062,-151.0,0.0004144,120]
[394239600,1763401842072,-263.22579,0.0004144,120]
[394239601,1763401842083,-151.0,0.0004144,120]
[394239602,1763401842094,-151.0,0.0004144,120]
[394239603,1763401842103,-151.0,0.0004144,120]
[394239604,1763401842118,-151.0,0.0004144,120]
[394239605,1763401842128,-151.0,0.0004144,120]
[394239606,1763401842140,-151.0,0.0004144,120]
[394239607,1763401842150,-151.0,0.0004144,120]
[394239608,1763401842160,-151.0,0.0004144,120]
[394239609,1763401842171,-151.0,0.0004144,120]
[394239610,1763401842181,-151.0,0.0004144,120]
[394239611,1763401842192,-151.0,0.0004144,120]
[394239612,1763401842202,-151.0,0.0004144,120]
[394239613,1763401842212,-151.0,0.0004144,120]
[394239614,1763401842222,-151.0,0.0004144,120]
[394239615,1763401842231,-242.64974,0.0004144,120]
[394239616,1763401842241,-151.0,0.0004144,15]
[394239617,1763401842251,-151.0,0.0004144,60]
[394239618,1763401842261,-151.0,0.0004144,120]
[394239619,1763401842270,-151.0,0.0004144,120]
[394239620,1763401842280,-159.234346,0.0004144,120]
[394239621,1763401842290,-151.0,0.0004144,120]
[394239622,1763401842300,-151.0,0.0004144,120]
[394239623,1763401842309,-151.0,0.0004144,120]
[394239624,1763401842320,-151.0,0.0004144,90]
[394239625,1763401842329,-151.0,0.0004144,120]
[394239626,1763401842339,-151.0,0.0004144,120]
[394239627,1763401842349,-254.468192,0.0004144,120]
[394239628,1763401842358,-151.0,0.0004144,120]
[394239629,1763401842372,-151.0,0.0004144,120]
[394239630,1763401842381,-151.0,0.0004144,120]
[394239631,1763401842391,-154.622544,0.0004144,120]
[394239632,1763401842402,-151.0,0.0004144,120]
[394239633,1763401842411,-151.0,0.0004144,120]
[394239634,1763401842421,-151.0,0.0004144,120]
[394239635,1763401842430,-1692869.5652,0.0004144,30]
[394239636,1763401842439,-151.0,0.0004144,120]
[394239637,1763401842450,-151.0,0.0004144,120]
[394239638,1763401842460,-151.0,0.0004144,120]
[394239639,1763401842469,-151.0,0.0004144,120]
[394239640,1763401842479,-153.4,0.0004144,120]
[394239641,1763401842490,-151.0,0.0004144,120]
[394239642,1763401842501,-151.0,0.0004144,120]
[394239643,1763401842511,-151.0,0.0004144,120]
[394239644,1763401842521,-151.0,0.0004144,120]
[394239645,1763401842531,-151.0,0.0004144,120]
[394239646,1763401842542,-151.0,0.0004144,120]
[394239647,1763401842552,-151.0,0.0004144,120]
[394239648,1763401842564,-151.0,0.0004144,120]
[394239649,1763401842573,-151.0,0.0004144,120]
[394239651,1763401842583,-171.918134,0.0004144,120]
[394239652,1763401842593,-151.0,0.0004144,120]
[394239654,1763401842603,-151.0,0.0004144,120]
[394239656,1763401842616,-151.0,0.0004144,120]
[394239658,1763401842629,-162.75,0.000416,14]
[394239660,1763401842640,-500.0,0.00041643,120]
[394239662,1763401842650,-500.0,0.00041643,120]
[394239664,1763401842660,-604.07374887,0.00041643,120]
[394239667,1763401842670,-1000.0,0.00041643,2]
[394239669,1763401842680,-500.0,0.00041643,120]
[394239671,1763401842689,-787.93,0.00041643,7]
[394239673,1763401842699,-1983.12,0.00041643,2]
[394239675,1763401842709,-500.0,0.00041643,120]
[394239677,1763401842718,-500.0,0.00041643,120]
[394239679,1763401842727,-500.0,0.00041643,120]
[394239681,1763401842737,-500.0,0.00041643,120]
[394239683,1763401842746,-500.0,0.00041643,120]
[394239685,1763401842755,-1833.29,0.00041643,120]
[394239687,1763401842765,-600.32820086,0.00041643,120]
[394239689,1763401842774,-500.0,0.00041643,120]
[394239691,1763401842784,-4054.14,0.00041643,120]
[394239693,1763401842793,-500.0,0.00041643,120]
[394239695,1763401842802,-500.0,0.00041643,2]
[394239697,1763401842811,-500.0,0.00041643,120]
[394239699,1763401842821,-500.0,0.00041643,60]
[394239701,1763401842831,-500.0,0.00041643,120]
[394239703,1763401842841,-500.0,0.00041643,2]
[394239705,1763401842850,-500.0,0.00041643,7]
[394239707,1763401842861,-500.0,0.00041643,120]
[394239710,1763401842875,-500.0,0.00041643,120]
[394239712,1763401842884,-11286.87,0.00041643,3]
[394239715,1763401842894,-500.0,0.00041643,120]
[394239718,1763401842903,-1529.92,0.00041643,120]
[394239722,1763401842912,-500.0,0.00041643,120]
[394239724,1763401842921,-2083.77,0.00041643,60]
[394239726,1763401842931,-1761.02,0.00041643,120]
[394239729,1763401842940,-500.0,0.00041643,120]
[394239732,1763401842949,-500.0,0.00041643,120]
[394239736,1763401842959,-500.0,0.00041643,120]
[394239738,1763401842968,-216.28621101,0.00041643,120]
[394239740,1763401842978,-500.0,0.00041643,120]
[394239742,1763401842986,-500.0,0.00041643,120]
[394239744,1763401842995,-859.98,0.00041643,120]
[394239746,1763401843004,-500.0,0.00041643,120]
[394239748,1763401843014,-615.49948266,0.00041643,120]
[394239750,1763401843023,-724.88,0.00041643,7]
[394239752,1763401843033,-1042.85,0.00041643,120]
[394239754,1763401843046,-500.0,0.00041643,120]
[394239756,1763401843055,-500.0,0.00041643,7]
[394239758,1763401843065,-500.0,0.00041643,120]
[394239760,1763401843074,-500.0,0.00041643,120]
[394239762,1763401843084,-500.0,0.00041643,120]
[394239764,1763401843094,-500.0,0.00041643,120]
[394239766,1763401843103,-833.63,0.00041643,120]
[394239768,1763401843115,-500.0,0.00041643,120]
[394239770,1763401843125,-500.0,0.00041644,120]
[394239772,1763401843134,-500.0,0.00041644,10]
[394239774,1763401843143,-550.0,0.00041644,10]
[394239776,1763401843153,-195.903316,0.00041669,10]
[394239778,1763401843162,-173.04,0.000417,31]